fUSD/lending_fUSD_20260327
["ID","MTS","AMOUNT","RATE_DAILY","PERIOD"]
[418936049,1774593039827,-2000.0,0.000158,2]
[418936050,1774593039836,-504.8953508,0.00015873,2]
[418936051,1774593039846,-151.0,0.00015897,2]
[418936052,1774593039855,-151.0,0.00015897,2]
[418936053,1774593039864,-500.0,0.00015899,2]
[418936054,1774593039873,-247.0014411,0.00015899,2]
[418936055,1774593039882,-500.0,0.00015899,2]
[418936056,1774593039891,-500.0,0.00015899,2]
[418936057,1774593039904,-355.63593637,0.00015899,2]
[418936058,1774593039917,-500.0,0.00015899,2]
[418936059,1774593039928,-312.10652361,0.00015899,2]
[418936060,1774593039940,-500.0,0.00015899,2]
[418936061,1774593039951,-513.52094574,0.00015899,2]
[418936062,1774593039963,-500.0,0.00015899,2]
[418936063,1774593039974,-500.0,0.00015899,2]
[418936064,1774593039983,-500.0,0.00015899,2]
[418936065,1774593039993,-505.66154803,0.00015899,2]
[418936066,1774593040004,-500.0,0.00015899,2]
[418936067,1774593040015,-500.0,0.00015899,2]
[418936068,1774593040026,-500.0,0.00015899,2]
[418936069,1774593040037,-439.81701128,0.00015899,2]
[418936070,1774593040048,-483.0188777,0.00015899,2]
[418936071,1774593040059,-500.0,0.00015899,2]
[418936072,1774593040070,-500.0,0.00015899,2]
[418936073,1774593040082,-500.0,0.00015899,2]
[418936074,1774593040092,-151.0,0.000159,2]
[418936075,1774593040103,-151.0,0.000159,2]
[418936076,1774593040113,-151.0,0.000159,2]
[418936077,1774593040125,-151.0,0.000159,2]
[418936078,1774593040136,-151.0,0.000159,2]
[418936079,1774593040148,-2700.0,0.000159,5]
[418936080,1774593040160,-151.0,0.000159,2]
[418936081,1774593040171,-151.0,0.000159,2]
[418936082,1774593040182,-199.47320475,0.000159,2]
[418936083,1774593040193,-2000.0,0.000159,2]
[418936084,1774593040204,-500.0,0.00015954,2]
[418936085,1774593040215,-1294.29685605,0.0001596,2]
[418936086,1774593040227,-1500.0,0.00015968,2]
[418936087,1774593040239,-1500.0,0.00015968,2]
[418936088,1774593040248,-1500.0,0.00015968,2]
[418936089,1774593040258,-1500.0,0.00015968,2]
[418936090,1774593040268,-500.0,0.00015973,2]
[418936091,1774593040280,-500.34476134,0.00015973,2]
[418936092,1774593040291,-394.50254207,0.00015973,2]
[418936093,1774593040302,-500.0,0.00015973,2]
[418936094,1774593040314,-500.63188015,0.00015973,2]
[418936095,1774593040325,-500.0,0.00015973,2]
[418936096,1774593040336,-500.0,0.00015973,2]
[418936097,1774593040347,-500.0,0.00015973,2]
[418936098,1774593040359,-501.298921,0.00015973,2]
[418936099,1774593040369,-500.0,0.00015973,2]
[418936100,1774593040379,-500.0,0.00015973,2]
[418936101,1774593040390,-502.11278427,0.00015973,2]
[418936102,1774593040401,-500.57481612,0.00015973,2]
[418936103,1774593040413,-403.22427551,0.00015973,2]
[418936104,1774593040425,-384.57005493,0.00015973,2]
[418936105,1774593040436,-500.6271311,0.00015973,2]
[418936106,1774593040447,-500.0,0.00015973,2]
[418936107,1774593040459,-151.0,0.00015997,2]
[418936109,1774593040468,-154.74032172,0.00015997,2]
[418936111,1774593040478,-500.0,0.00015999,2]
[418936113,1774593040488,-2202.21427097,0.00015999,2]
[418936114,1774593040497,-500.0,0.00015999,2]
[418936115,1774593040508,-500.0,0.00015999,2]
[418936116,1774593040518,-500.0,0.00015999,2]
[418936117,1774593040528,-500.0,0.00015999,2]
[418936118,1774593040542,-500.0,0.00015999,2]
[418936119,1774593040554,-511.55898747,0.00015999,2]
[418936120,1774593040564,-513.92773084,0.00015999,2]
[418936121,1774593040574,-500.0,0.00015999,2]
[418936122,1774593040583,-500.0,0.00015999,2]
[418936123,1774593040594,-500.0,0.00015999,2]
[418936124,1774593040606,-24029.75752841,0.00016,2]
[418936125,1774593040621,-3150.75,0.00016,2]
[418936126,1774593040760,-1028.56934654,0.00014781,2]
[418936127,1774593040772,-333.26194966,0.00014781,2]
[418936128,1774593040848,-39091.2231038,0.00014781,2]
[418936129,1774593040858,-180234.70862028,0.00016,2]
[418936130,1774593040871,-622.95812192,0.00016,2]
[418936131,1774593040883,-265.1286,0.00016,2]
[418936132,1774593041172,-39488.18027556,0.00016,2]
[418936133,1774593041426,-1037.01301123,0.00016,2]
[418936134,1774593041439,-265.96,0.00016,2]
[418936147,1774593043514,-1163.69555954,0.00016,2]
[418936157,1774593046273,-2832.8746602,0.00016,2]
[418936158,1774593046552,-32921.25085867,0.00016,2]
[418936159,1774593046621,-58997.90086934,0.00016,2]
[418936160,1774593046632,-151.0,0.00016,2]
[418936161,1774593046643,-151.0,0.00016,2]
[418936162,1774593046654,-278.715656,0.00016,2]
[418936163,1774593046665,-151.0,0.00016,2]
[418936164,1774593046676,-151.0,0.00016,2]
[418936165,1774593046686,-268.276859,0.00016,2]
[418936166,1774593046696,-555.0,0.00016,2]
[418936167,1774593046706,-313.0,0.00016,2]
[418936168,1774593046716,-182.792348,0.00016,2]
[418936169,1774593046726,-2000.0,0.00016,2]
[418936170,1774593046735,-255.0,0.00016002,2]
[418936171,1774593046745,-981.0,0.00016112,2]
[418936172,1774593046755,-503.85224091,0.00016173,2]
[418936173,1774593046764,-500.0,0.00016173,2]
[418936174,1774593046774,-500.7227173,0.00016173,2]
[418936175,1774593046783,-981.0,0.00016229,2]
[418936176,1774593046793,-187.78006525,0.00016245,2]
[418936177,1774593046803,-168.0,0.00016266,2]
[418936178,1774593046812,-2000.0,0.00016275,2]
[418936179,1774593046822,-991.185712,0.00016317,2]
[418936180,1774593046832,-184.255348,0.00016317,2]
[418936181,1774593046841,-500.0,0.00016321,2]
[418936183,1774593047091,-500.0,0.00016321,2]
[418936184,1774593047104,-500.0,0.00016321,2]
[418936185,1774593047114,-981.0,0.00016359,2]
[418936186,1774593047124,-981.0,0.00016359,2]
[418936187,1774593047133,-157.78,0.00016451,2]
[418936188,1774593047142,-168.0,0.00016466,2]
[418936189,1774593047152,-938.24,0.00016466,2]
[418936190,1774593047161,-2000.0,0.00016516,2]
[418936191,1774593047170,-212.65861077,0.00016516,2]
[418936192,1774593047180,-500.0,0.00016516,2]
[418936193,1774593047189,-2000.0,0.00016516,2]
[418936194,1774593047199,-500.0,0.00016521,2]
[418936195,1774593047208,-500.94604255,0.00016521,2]
[418936196,1774593047218,-501.13303703,0.00016521,2]
[418936197,1774593047227,-500.0,0.00016521,2]
[418936198,1774593047237,-500.0,0.00016521,2]
[418936199,1774593047248,-500.0,0.00016521,2]
[418936200,1774593047258,-168.0,0.00016568,2]
[418936201,1774593047267,-1217.703,0.00016621,2]
[418936202,1774593047277,-931.366,0.00016621,2]
[418936203,1774593047286,-625.827,0.00016621,2]
[418936204,1774593047296,-3517.0,0.00016621,2]
[418936205,1774593047307,-1345.0,0.00016621,2]
[418936206,1774593047316,-41.21889501,0.00016621,2]
[418936210,1774593138158,4791.0,0.00012,5]
[418936216,1774593887448,291.41966941,1e-06,2]
[418936219,1774594232297,-150.52,0.00011507,2]
[418936220,1774594232306,-509.0,0.00013111,2]
[418936221,1774594232315,-122.48,0.00013699,2]
[418936222,1774594232496,-27.52,0.00013699,2]
[418936223,1774594232506,-165.13,0.00013699,2]
[418936224,1774594232515,-238.37275521,0.00013734,2]
[418936225,1774594232524,-17.77108858,0.000138,2]
[418936250,1774594238391,-891.48891142,0.000138,2]
[418936251,1774594238401,-150.0,0.00013973,2]
[418936252,1774594238410,-2000.0,0.00014069,2]
[418936254,1774594238419,-150.0,0.00014103,2]
[418936255,1774594238429,-156.82,0.0001434,2]
[418936256,1774594238438,-250.21682461,0.0001435,2]
[418936257,1774594238448,-939.02724564,0.00014421,2]
[418936258,1774594238460,-260.97275436,0.00014421,2]
[418936259,1774594238469,-300.0,0.00014421,2]
[418936260,1774594238479,-303.77,0.00014422,2]
[418936261,1774594238489,-303.20992253,0.00014422,2]
[418936262,1774594238498,-200.0,0.00014422,2]
[418936263,1774594238507,-300.54401612,0.00014422,2]
[418936264,1774594238516,-831.41769929,0.00014422,2]
[418936265,1774594238526,-243.62271831,0.00014422,2]
[418936266,1774594238535,-600.0,0.00014422,2]
[418936267,1774594238544,-600.0,0.00014422,2]
[418936268,1774594238553,-600.0,0.00014422,2]
[418936269,1774594238563,-600.0,0.00014422,2]
[418936270,1774594238572,-350.69183641,0.00014422,2]
[418936271,1774594238582,-166.66,0.00014476,2]
[418936272,1774594238592,-473.08637647,0.00014611,2]
[418936273,1774594238601,-717.74698958,0.00014642,2]
[418936274,1774594238610,-2720.4295,0.00014673,2]
[418936275,1774594238619,-150.0,0.0001468,2]
[418936276,1774594238628,-1459.04195439,0.00014681,2]
[418936277,1774594238648,-14431.76091297,0.00014681,2]
[418936278,1774594238657,-5736.26257911,0.00014681,2]
[418936280,1774594238667,-2500.0,0.00014681,2]
[418936281,1774594238676,-303.77,0.00014696,2]
[418936282,1774594238685,-200.0,0.00014772,2]
[418936283,1774594238695,-500.0,0.00014772,2]
[418936284,1774594238704,-500.0,0.00014772,2]
[418936285,1774594238713,-500.0,0.00014772,2]
[418936286,1774594238722,-500.0,0.00014772,2]
[418936287,1774594238731,-500.0,0.00014772,2]
[418936288,1774594238741,-500.0,0.00014772,2]
[418936289,1774594238750,-500.0,0.00014772,2]
[418936290,1774594238760,-606.70815574,0.00014772,2]
[418936291,1774594238769,-151.0,0.00014772,2]
[418936292,1774594238778,-151.0,0.00014772,2]
[418936293,1774594238787,-151.0,0.00014772,2]
[418936294,1774594238796,-151.0,0.00014772,2]
[418936296,1774594238805,-151.0,0.00014772,2]
[418936298,1774594238814,-151.0,0.00014772,2]
[418936299,1774594238823,-151.0,0.00014772,2]
[418936300,1774594238832,-151.0,0.00014772,2]
[418936301,1774594238841,-165.4440686,0.00014772,2]
[418936302,1774594238851,-502.08574214,0.00014773,2]
[418936303,1774594238860,-500.0,0.00014773,2]
[418936304,1774594238869,-500.0,0.00014773,2]
[418936305,1774594238878,-500.0,0.00014773,2]
[418936306,1774594238887,-500.0,0.00014773,2]
[418936307,1774594238896,-500.0,0.00014773,2]
[418936308,1774594238904,-734.406,0.00014778,2]
[418936309,1774594238913,-151.0,0.00014778,2]
[418936310,1774594238923,-500.0,0.0001478,2]
[418936311,1774594238931,-500.0,0.0001478,2]
[418936312,1774594238940,-500.0,0.0001478,2]
[418936313,1774594238949,-414.56254144,0.0001478,2]
[418936314,1774594238961,-82.42039148,0.0001478,2]
[418936315,1774594238970,-295.87247677,0.0001478,2]
[418936316,1774594238981,-217.67464044,0.0001478,2]
[418936317,1774594238991,-500.0,0.0001478,2]
[418936318,1774594239000,-183.48535956,0.0001478,2]
[418936319,1774594239011,-316.51464044,0.0001478,2]
[418936320,1774594239020,-358.54953192,0.0001478,2]
[418936321,1774594239031,-157.70759585,0.0001478,2]
[418936322,1774594239040,-500.0,0.0001478,2]
[418936323,1774594239050,-500.0,0.00014781,2]
[418936324,1774594239059,-303.77,0.0001497,2]
[418936325,1774594239068,-432.46,0.00015049,2]
[418936326,1774594239077,-500.0,0.00015055,2]
[418936327,1774594239086,-150.0,0.000152,2]
[418936328,1774594239095,-6179.55138249,0.00015205,2]
[418936329,1774594239107,-2542.91899349,0.00015205,2]
[418936330,1774594239118,-1187.75083997,0.00015205,2]
[418936334,1774594240937,-89.77878405,0.00015205,2]
[418936335,1774594240947,-303.77,0.00015244,2]
[418936336,1774594240956,-15842.76908769,0.00015265,2]
[418936337,1774594240966,-166.66,0.00015272,2]
[418936338,1774594240975,-500.0,0.00015273,2]
[418936339,1774594240984,-500.0,0.00015273,2]
[418936340,1774594240994,-500.0,0.00015273,2]
[418936341,1774594241003,-6293.05,0.0001531,2]
[418936342,1774594241014,-299.99,0.0001531,2]
[418936343,1774594241023,-999.99,0.0001531,2]
[418936344,1774594241033,-150.99,0.0001531,2]
[418936345,1774594241042,-4999.99,0.0001531,2]
[418936346,1774594241052,-200.0,0.0001532,2]
[418936347,1774594241061,-511.45325167,0.00015321,2]
[418936348,1774594241071,-1000.69972798,0.00015321,2]
[418936349,1774594241080,-1000.0,0.00015321,2]
[418936350,1774594241091,-1000.0,0.00015321,2]
[418936351,1774594241101,-1000.0,0.00015321,2]
[418936352,1774594241110,-1000.0,0.00015321,2]
[418936353,1774594241119,-156.82,0.00015365,2]
[418936354,1774594241128,-1586.988,0.00015429,2]
[418936355,1774594241137,-173.99,0.00015441,2]
[418936356,1774594241147,-200.0,0.000155,2]
[418936357,1774594241156,-303.78,0.00015518,2]
[418936358,1774594241166,-3240.0,0.00015589,2]
[418936359,1774594241175,-3516.0,0.00015663,2]
[418936360,1774594241185,-1345.0,0.00015663,2]
[418936361,1774594241194,-1262.0,0.00015663,2]
[418936362,1774594241204,-150.0,0.00015663,2]
[418936363,1774594241213,-415.0,0.00015663,2]
[418936364,1774594241223,-3764.0,0.00015663,2]
[418936365,1774594241232,-2467.0,0.00015663,2]
[418936366,1774594241241,-318.06119016,0.00015734,2]
[418936367,1774594241251,-500.0,0.00015734,2]
[418936368,1774594241260,-500.0,0.00015734,2]
[418936369,1774594241270,-500.0,0.00015734,2]
[418936370,1774594241279,-500.0,0.00015734,2]
[418936371,1774594241289,-520.10779386,0.00015734,2]
[418936372,1774594241299,-500.0,0.00015734,2]
[418936373,1774594241308,-500.0,0.00015734,2]
[418936374,1774594241318,-536.96583205,0.00015734,2]
[418936375,1774594241327,-420.0,0.00015792,2]
[418936376,1774594241337,-1000.0,0.00015821,2]
[418936377,1774594241347,-1000.0,0.00015821,2]
[418936378,1774594241356,-2000.0,0.00015828,2]
[418936379,1774594241366,-1680.0,0.00015863,2]
[418936380,1774594241375,-2000.0,0.0001589,2]
[418936381,1774594241385,-500.0,0.00015899,2]
[418936382,1774594241394,-500.0,0.00015899,2]
[418936383,1774594241404,-500.0,0.00015899,2]
[418936384,1774594241413,-500.0,0.00015899,2]
[418936385,1774594241422,-500.0,0.00015899,2]
[418936386,1774594241432,-500.0,0.00015899,2]
[418936387,1774594241442,-151.0,0.00015961,2]
[418936388,1774594241451,-194.72792767,0.00015987,2]
[418936389,1774594241461,-500.0,0.00015999,2]
[418936390,1774594241470,-500.0,0.00015999,2]
[418936391,1774594241480,-500.0,0.00015999,2]
[418936392,1774594241490,-500.0,0.00015999,2]
[418936393,1774594241499,-500.0,0.00015999,2]
[418936394,1774594241509,-500.0,0.00015999,2]
[418936396,1774594241519,-166.66,0.00016069,2]
[418936398,1774594241528,-5369.4602526,0.00016096,2]
[418936399,1774594241538,-151.0,0.00016116,2]
[418936400,1774594241547,-151.0,0.00016116,2]
[418936401,1774594241556,-20702.95,0.00016116,2]
[418936402,1774594241565,-6288.93,0.00016116,2]
[418936403,1774594241574,-500.0,0.00016176,2]
[418936404,1774594241584,-500.0,0.00016176,2]
[418936405,1774594241593,-299.27,0.00016176,2]
[418936406,1774594241603,-299.0,0.000163,2]
[418936407,1774594241612,-150.045273,0.00016317,2]
[418936408,1774594241622,-1000.0,0.00016368,2]
[418936409,1774594241631,-1500.0,0.00016368,2]
[418936410,1774594241641,-156.82,0.00016389,2]
[418936411,1774594241651,-2000.0,0.000164,2]
[418936412,1774594241661,-1144.94732496,0.0001646,2]
[418936413,1774594241670,-151.0,0.00016621,2]
[418936414,1774594241679,-151.0,0.00016621,2]
[418936415,1774594241689,-153.0,0.00016621,2]
[418936416,1774594241698,-154.87147006,0.00016621,2]
[418936417,1774594241707,-173.54730483,0.00016621,2]
[418936418,1774594241716,-151.0,0.00016621,2]
[418936419,1774594241726,-151.0,0.00016621,2]
[418936420,1774594241735,-272.0,0.00016625,2]
[418936421,1774594241745,-217.0,0.00016625,2]
[418936422,1774594241754,-200.0,0.00016625,2]
[418936423,1774594241763,-250.0,0.00016625,2]
[418936424,1774594241773,-224.549,0.00016625,2]
[418936425,1774594241782,-196.331,0.00016625,2]
[418936426,1774594241791,-237.595,0.00016625,2]
[418936427,1774594241800,-250.0,0.00016625,2]
[418936428,1774594241810,-162.653,0.00016625,2]
[418936429,1774594241819,-193.306,0.00016625,2]
[418936430,1774594241829,-165.903,0.00016625,2]
[418936431,1774594241838,-214.65,0.00016625,2]
[418936432,1774594241848,-250.0,0.00016625,2]
[418936433,1774594241857,-179.0,0.00016625,2]
[418936434,1774594241866,-238.924,0.00016625,2]
[418936435,1774594241876,-981.0,0.00016683,2]
[418936436,1774594241885,-981.0,0.00016729,2]
[418936437,1774594241895,-981.0,0.00016739,2]
[418936438,1774594241904,-500.0,0.00016762,2]
[418936439,1774594241913,-500.0,0.00016762,2]
[418936440,1774594241922,-37312.07157101,0.00016763,2]
[418936441,1774594241931,-981.0,0.0001678,2]
[418936442,1774594241940,-2403.0,0.000168,2]
[418936443,1774594241950,-854.0,0.00016832,5]
[418936444,1774594241959,-2803.36464642,0.00016832,2]
[418936445,1774594241968,-981.0,0.00016853,2]
[418936446,1774594241977,-981.0,0.00016856,2]
[418936447,1774594241986,-166.66,0.00016865,2]
[418936448,1774594241995,-981.0,0.00016889,2]
[418936449,1774594242004,-2000.0,0.00016916,2]
[418936450,1774594242014,-981.0,0.00016947,2]
[418936451,1774594242023,-193.94,0.00017,2]
[418936452,1774594242032,-694.5192,0.00017,2]
[418936453,1774594242042,-694.51919,0.00017,2]
[418936454,1774594242051,-694.51919,0.00017,2]
[418936455,1774594242061,-694.51919,0.00017,2]
[418936456,1774594242070,-168.0,0.00017011,2]
[418936457,1774594242079,-500.0,0.00017023,2]
[418936458,1774594242088,-981.0,0.00017035,2]
[418936459,1774594242097,-168.0,0.00017035,2]
[418936460,1774594242107,-500.0,0.00017039,2]
[418936461,1774594242119,-200.0,0.00017039,2]
[418936462,1774594242130,-981.0,0.00017049,2]
[418936463,1774594242139,-500.0,0.00017099,2]
[418936464,1774594242149,-694.51919,0.00017176,2]
[418936465,1774594242158,-694.51919,0.00017176,2]
[418936466,1774594242167,-938.24,0.00017182,2]
[418936467,1774594242176,-587.0,0.00017294,2]
[418936468,1774594242185,-500.0,0.00017301,2]
[418936469,1774594242194,-500.0,0.00017301,2]
[418936470,1774594242203,-500.0,0.00017301,2]
[418936471,1774594242212,-500.0,0.00017301,2]
[418936472,1774594242222,-155.0,0.00017307,2]
[418936473,1774594242233,-180.03727444,0.00017339,2]
[418936474,1774594242244,-156.82,0.00017413,2]
[418936475,1774594242253,-339.0,0.00017449,2]
[418936476,1774594242263,-66.09433662,0.00017464,2]
[418936477,1774594242291,-610.45389952,0.00017464,2]
[418936479,1774594243707,-151.0,0.00014099,2]
[418936480,1774594243716,-823.45176386,0.00017464,2]
[418936481,1774594243726,-174.515119,0.00017466,7]
[418936482,1774594243736,-356.41365572,0.00017487,2]
[418936483,1774594243745,-494.17167578,0.00017492,2]
[418936484,1774594243755,-160.0,0.00017492,2]
[418936485,1774594243764,-287.06382648,0.00017551,7]
[418936486,1774594243776,-26.10276552,0.00017551,7]
[418936487,1774594243785,-1911.16944807,0.00017587,2]
[418936488,1774594244027,-88.83055193,0.00017587,2]
[418936489,1774594244036,-151.0,0.00017766,2]
[418936490,1774594244046,-500.0,0.00017771,2]
[418936491,1774594244055,-500.0,0.00017823,2]
[418936492,1774594244065,-500.0,0.00017823,2]
[418936493,1774594244075,-500.0,0.00017823,2]
[418936494,1774594244084,-500.0,0.00017878,2]
[418936495,1774594244094,-350.0,0.00017887,3]
[418936496,1774594244104,-485.68946803,0.00017909,2]
[418936497,1774594244116,-2550.54519764,0.00017909,2]
[418936501,1774594246396,-2500.0,0.00014681,2]
[418936502,1774594246406,-216.87578437,0.00017587,2]
[418936503,1774594246415,-547.09892407,0.00017909,2]
[418936504,1774594246428,-12307.46927757,0.00017909,2]
[418936505,1774594246437,-157.0,0.00017919,2]
[418936506,1774594246447,-500.67261463,0.00018319,2]
[418936507,1774594246456,-500.0,0.00018371,2]
[418936508,1774594246465,-502.17243815,0.00018371,2]
[418936509,1774594246474,-499.00409206,0.00018371,2]
[418936510,1774594246483,-15842.76908767,0.00018409,2]
[418936511,1774594246493,-285.46359386,0.00018426,2]
[418936512,1774594246503,-156.82,0.00018438,2]
[418936513,1774594246514,-1104.5307754,0.000185,2]
[418936514,1774594246525,-350.0,0.00018515,2]
[418936515,1774594246535,-157.78,0.00018614,2]
[418936516,1774594246544,-852.0,0.00018663,5]
[418936517,1774594246553,-1345.0,0.00018663,2]
[418936518,1774594246562,-1262.0,0.00018663,2]
[418936519,1774594246571,-150.0,0.00018663,2]
[418936520,1774594246580,-415.0,0.00018663,2]
[418936521,1774594246590,-3764.0,0.00018663,2]
[418936522,1774594246599,-2467.0,0.00018663,2]
[418936523,1774594246609,-311.140897,0.0001881,7]
[418936524,1774594246618,-151.0,0.00018862,2]
[418936525,1774594246626,-231.0,0.00018862,2]
[418936526,1774594246635,-155.0,0.00018862,2]
[418936527,1774594246644,-155.0,0.00018881,2]
[418936528,1774594246654,-337.25,0.00018904,2]
[418936529,1774594246663,-160.50046166,0.00018919,2]
[418936530,1774594246672,-1198.088526,0.00018922,2]
[418936531,1774594246681,-823.0,0.00018938,2]
[418936532,1774594246702,-5736.26257907,0.00019112,2]
[418936533,1774594246712,-2000.0,0.000192,2]
[418936534,1774594246721,-2000.0,0.00019345,2]
[418936535,1774594246731,-156.82,0.00019462,2]
[418936536,1774594246741,-267.3296846,0.00019552,2]
[418936537,1774594246751,-1741.3,0.000196,2]
[418936538,1774594246760,-1741.3,0.000196,2]
[418936539,1774594246772,-1729.73,0.000196,2]
[418936540,1774594246784,-150.0,0.00019625,2]
[418936541,1774594246794,-150.0,0.00019625,2]
[418936542,1774594246804,-150.0,0.00019625,2]
[418936543,1774594246813,-150.0,0.00019625,2]
[418936544,1774594246824,-247.28547,0.00019665,7]
[418936545,1774594246834,-174.023792,0.00019665,7]
[418936546,1774594246843,-880.0,0.00019706,5]
[418936547,1774594246854,-151.0,0.00019862,2]
[418936548,1774594246864,-231.0,0.00019862,2]
[418936549,1774594246873,-165.90163272,0.00019862,2]
[418936550,1774594246883,-150.0,0.0002,2]
[418936551,1774594246892,-150.0,0.0002,10]
[418936552,1774594246902,-825.0,0.0002,30]
[418936553,1774594246911,-202.744244,0.0002,2]
[418936554,1774594246920,-217.58086681,0.00020158,2]
[418936555,1774594246930,-196.580248,0.00020184,7]
[418936556,1774594246939,-156.82,0.00020486,2]
[418936558,1774594246949,-153.4803,0.000205,2]
[418936559,1774594246958,-379.0,0.00020739,2]
[418936560,1774594246968,-157.78,0.00020777,2]
[418936561,1774594246977,-400.57,0.00020814,2]
[418936562,1774594246987,-406.64,0.00020814,2]
[418936563,1774594246996,-410.51,0.00020814,2]
[418936564,1774594247006,-151.0,0.00020862,2]
[418936565,1774594247015,-231.0,0.00020862,2]
[418936566,1774594247025,-2000.0,0.00021104,2]
[418936567,1774594247035,-15890.80286731,0.00021137,2]
[418936568,1774594247044,-185.0,0.00021372,2]
[418936569,1774594247054,-560.053615,0.00021375,7]
[418936570,1774594247063,-156.82,0.0002151,2]
[418936571,1774594247072,-15842.76908767,0.00021554,2]
[418936572,1774594247082,-1345.0,0.00021663,2]
[418936573,1774594247091,-415.0,0.00021663,2]
[418936574,1774594247100,-1309.719,0.00021663,2]
[418936575,1774594247110,-2467.0,0.00021663,2]
[418936576,1774594247119,-173.99,0.00021676,2]
[418936577,1774594247128,-400.58,0.00021854,2]
[418936578,1774594247138,-410.51,0.00021854,2]
[418936579,1774594247147,-151.0,0.00021862,2]
[418936580,1774594247156,-231.0,0.00021862,2]
[418936581,1774594247165,-5000.0,0.00021918,2]
[418936582,1774594247175,-2014.24366575,0.00022,2]
[418936583,1774594247184,-155.0,0.00022028,2]
[418936584,1774594247194,-269.8,0.00022191,3]
[418936585,1774594247203,-247.28547,0.0002223,14]
[418936586,1774594247213,-174.023792,0.0002223,14]
[418936587,1774594247222,-825.0,0.00022432,30]
[418936588,1774594247231,-150.0,0.00022625,2]
[418936589,1774594247241,-509.0,0.00022667,10]
[418936590,1774594247250,-196.580248,0.00022816,14]
[418936591,1774594247260,-151.0,0.00022862,2]
[418936592,1774594247269,-231.0,0.00022862,2]
[418936593,1774594247278,-2000.0,0.000229,2]
[418936594,1774594247287,-157.78,0.0002294,2]
[418936595,1774594247297,-3349.59939737,0.00023,2]
[418936596,1774594247310,-1104.53077539,0.00023083,2]
[418936597,1774594247320,-5736.26257907,0.00023544,2]
[418936598,1774594247329,-160.41496563,0.00023862,2]
[418936599,1774594247339,-235.36171926,0.00023862,2]
[418936600,1774594247349,-15890.80286731,0.00024366,2]
[418936601,1774594247359,-1000.0,0.00024658,2]
[418936602,1774594247369,-150.0,0.00024658,2]
[418936603,1774594247378,-2467.0,0.00024663,2]
[418936604,1774594247388,-15842.76908767,0.00024698,2]
[418936605,1774594247398,-165.941811,0.00024795,14]
[418936606,1774594247407,-825.0,0.00024864,60]
[418936607,1774594247417,-500.0,0.00024899,2]
[418936608,1774594247427,-500.0,0.00024899,2]
[418936609,1774594247436,-500.0,0.00024899,2]
[418936610,1774594247446,-500.0,0.00024899,2]
[418936611,1774594247455,-500.0,0.00024899,2]
[418936612,1774594247464,-500.0,0.00024899,2]
[418936613,1774594247474,-500.0,0.00024899,2]
[418936614,1774594247483,-500.0,0.00024899,2]
[418936615,1774594247493,-2600.0,0.000249,9]
[418936616,1774594247502,-150.0,0.00025,2]
[418936617,1774594247512,-157.78,0.00025103,2]
[418936618,1774594247521,-185.0,0.00025436,2]
[418936619,1774594247531,-150.0,0.0002589,2]
[418936620,1774594247540,-157.0415,0.000259,2]
[418936621,1774594247549,-214.0,0.00026,2]